fUSD/lending_fUSD_20260514
["ID","MTS","AMOUNT","RATE_DAILY","PERIOD"]
[422255768,1778771431000,-6550.3729,9.354e-05,2]
[422255762,1778771431000,-408.0067,9.344e-05,2]
[422255782,1778771432000,-1013.89844805,9.454e-05,2]
[422255788,1778771432000,-1013.89844805,9.454e-05,2]
[422255784,1778771432000,-1013.89844805,9.454e-05,2]
[422255785,1778771432000,-1013.89844805,9.454e-05,2]
[422255787,1778771432000,-1013.89844805,9.454e-05,2]
[422255781,1778771432000,-1013.89844805,9.454e-05,2]
[422255792,1778771432000,-1013.89844805,9.454e-05,2]
[422255802,1778771432000,-1013.89844805,9.454e-05,2]
[422255795,1778771432000,-1013.89844805,9.454e-05,2]
[422255786,1778771432000,-1013.89844805,9.454e-05,2]
[422255790,1778771432000,-1013.89844805,9.454e-05,2]
[422255783,1778771432000,-1013.89844805,9.454e-05,2]
[422255771,1778771432000,-150.0,9.449e-05,2]
[422255778,1778771432000,-1013.89844805,9.454e-05,2]
[422255789,1778771432000,-1013.89844805,9.454e-05,2]
[422255779,1778771432000,-1013.89844805,9.454e-05,2]
[422255776,1778771432000,-1013.89844805,9.454e-05,2]
[422255777,1778771432000,-1013.89844805,9.454e-05,2]
[422255775,1778771432000,-1013.89844805,9.454e-05,2]
[422255774,1778771432000,-1013.89844805,9.454e-05,2]
[422255794,1778771432000,-1013.89844805,9.454e-05,2]
[422255772,1778771432000,-1475.156,9.45e-05,2]
[422255773,1778771432000,-165.022,9.45e-05,2]
[422255780,1778771432000,-1013.89844805,9.454e-05,2]
[422255796,1778771432000,-1013.89844805,9.454e-05,2]
[422255791,1778771432000,-1013.89844805,9.454e-05,2]
[422255798,1778771432000,-1013.89844805,9.454e-05,2]
[422255816,1778771432000,-1013.89844805,9.454e-05,2]
[422255819,1778771432000,-1013.89844805,9.454e-05,2]
[422255800,1778771432000,-1013.89844805,9.454e-05,2]
[422255818,1778771432000,-1013.89844805,9.454e-05,2]
[422255822,1778771432000,-262.76185371,9.454e-05,2]
[422255813,1778771432000,-283.34943811,9.454e-05,2]
[422255811,1778771432000,-632.59899625,9.454e-05,2]
[422255814,1778771432000,-730.54900994,9.454e-05,2]
[422255812,1778771432000,-1013.89844805,9.454e-05,2]
[422255815,1778771432000,-1013.89844805,9.454e-05,2]
[422255821,1778771432000,-1013.89844805,9.454e-05,2]
[422255820,1778771432000,-1013.89844805,9.454e-05,2]
[422255817,1778771432000,-1013.89844805,9.454e-05,2]
[422255801,1778771432000,-1013.89844805,9.454e-05,2]
[422255809,1778771432000,-1013.89844805,9.454e-05,2]
[422255804,1778771432000,-613.12954317,9.454e-05,2]
[422255808,1778771432000,-1013.89844805,9.454e-05,2]
[422255806,1778771432000,-193.11109512,9.454e-05,2]
[422255807,1778771432000,-820.78735293,9.454e-05,2]
[422255805,1778771432000,-400.76890488,9.454e-05,2]
[422255803,1778771432000,-1013.89844805,9.454e-05,2]
[422255799,1778771432000,-1013.89844805,9.454e-05,2]
[422255793,1778771432000,-1013.89844805,9.454e-05,2]
[422255797,1778771432000,-1013.89844805,9.454e-05,2]
[422255810,1778771432000,-381.2994518,9.454e-05,2]
[422255834,1778771433000,-561.77615957,9.454e-05,2]
[422255833,1778771433000,-390.37,9.454e-05,2]
[422255880,1778771438000,-694.7,0.00010842,2]
[422255878,1778771438000,-500.0,0.00010764,2]
[422255882,1778771438000,-169.96719254,0.00011099,2]
[422255881,1778771438000,-150.0,0.00010959,2]
[422255887,1778771438000,-166.66,0.00011511,2]
[422255879,1778771438000,-166.66,0.0001082,2]
[422255884,1778771438000,-166.66,0.00011166,2]
[422255886,1778771438000,-587.0,0.00011317,2]
[422255888,1778771438000,-166.66,0.00011857,2]
[422255894,1778771438000,-175.33,0.00012683,2]
[422255896,1778771438000,-451.73,0.00012683,2]
[422255895,1778771438000,-181.5,0.00012683,2]
[422255897,1778771438000,-14654.86,0.00012683,2]
[422255889,1778771438000,-775.04,0.00011946,2]
[422255890,1778771438000,-169.9671925,0.00012128,2]
[422255891,1778771438000,-166.66,0.00012203,2]
[422255892,1778771438000,-823.0,0.00012449,2]
[422255893,1778771438000,-2000.0,0.00012683,2]
[422255883,1778771438000,-169.9671925,0.00011099,2]
[422255885,1778771438000,-169.9671925,0.00011203,2]
[422255872,1778771438000,-420.0,0.00010288,2]
[422255858,1778771438000,-602.45698304,9.454e-05,2]
[422255876,1778771438000,-215.30508946,0.000107,2]
[422255899,1778771438000,-880.7877746,0.00013,5]
[422255855,1778771438000,-47.84384043,9.454e-05,2]
[422255856,1778771438000,-217.87574614,9.454e-05,2]
[422255857,1778771438000,-864.28652723,9.454e-05,2]
[422255859,1778771438000,-304.0,9.454e-05,2]
[422255861,1778771438000,-9999.99,9.455e-05,2]
[422255860,1778771438000,-210.39074359,9.454e-05,2]
[422255862,1778771438000,-150.99,9.455e-05,2]
[422255864,1778771438000,-1500000.0,9.528e-05,2]
[422255875,1778771438000,-158.43537018,0.00010664,2]
[422255863,1778771438000,-2868.59,9.455e-05,2]
[422255866,1778771438000,-250.0,9.761e-05,2]
[422255867,1778771438000,-337.06821528,0.0001,2]
[422255868,1778771438000,-437.55454569,0.0001,2]
[422255870,1778771438000,-250.0,0.00010193,2]
[422255869,1778771438000,-250.0,0.00010192,2]
[422255871,1778771438000,-467.0,0.00010288,2]
[422255873,1778771438000,-164.29,0.00010413,2]
[422255874,1778771438000,-166.66,0.00010474,2]
[422255877,1778771438000,-48210.57831437,0.000107,2]
[422255865,1778771438000,-200.0,9.557e-05,2]
[422255898,1778771438000,-4583.93,0.00012757,2]
[422255905,1778771438000,-213.52501256,0.00013425,2]
[422255900,1778771438000,-164.29,0.00013016,2]
[422255932,1778771438000,-500.0,0.00013698,2]
[422255934,1778771438000,-500.0,0.00013698,2]
[422255923,1778771438000,-500.0,0.00013698,2]
[422255926,1778771438000,-500.0,0.00013698,2]
[422255928,1778771438000,-500.0,0.00013698,2]
[422255930,1778771438000,-500.0,0.00013698,2]
[422255925,1778771438000,-457.83735214,0.00013698,2]
[422255929,1778771438000,-502.6031951,0.00013698,2]
[422255927,1778771438000,-500.0,0.00013698,2]
[422255933,1778771438000,-285.80037677,0.00013698,2]
[422255931,1778771438000,-500.0,0.00013698,2]
[422255936,1778771438000,-500.0,0.00013698,2]
[422255940,1778771438000,-500.0,0.00013698,2]
[422255938,1778771438000,-500.0,0.00013698,2]
[422255945,1778771438000,-500.0,0.00013698,2]
[422255939,1778771438000,-500.0,0.00013698,2]
[422255943,1778771438000,-500.0,0.00013698,2]
[422255942,1778771438000,-500.0,0.00013698,2]
[422255908,1778771438000,-150.0,0.00013488,2]
[422255944,1778771438000,-500.0,0.00013698,2]
[422255937,1778771438000,-500.0,0.00013698,2]
[422255935,1778771438000,-500.0,0.00013698,2]
[422255941,1778771438000,-500.0,0.00013698,2]
[422255919,1778771438000,-500.0,0.00013698,2]
[422255904,1778771438000,-150.0,0.00013425,2]
[422255902,1778771438000,-500.0,0.00013151,2]
[422255924,1778771438000,-500.0,0.00013698,2]
[422255909,1778771438000,-150.0,0.00013488,2]
[422255903,1778771438000,-150.0,0.00013425,2]
[422255907,1778771438000,-185.30906992,0.00013488,2]
[422255906,1778771438000,-284.63445457,0.00013425,2]
[422255910,1778771438000,-150.00000001,0.00013488,2]
[422255912,1778771438000,-150.64066077,0.00013488,2]
[422255901,1778771438000,-169.9671925,0.00013052,2]
[422255915,1778771438000,-150.0,0.00013488,2]
[422255918,1778771438000,-1152.0,0.00013694,2]
[422255920,1778771438000,-500.0,0.00013698,2]
[422255922,1778771438000,-500.0,0.00013698,2]
[422255914,1778771438000,-202.6867271,0.00013488,2]
[422255913,1778771438000,-150.0,0.00013488,2]
[422255921,1778771438000,-500.0,0.00013698,2]
[422255917,1778771438000,-500.0,0.00013562,2]
[422255911,1778771438000,-150.0,0.00013488,2]
[422255916,1778771438000,-150.0,0.00013488,2]
[422255995,1778771439000,-166.66,0.0001411,2]
[422255982,1778771439000,-500.0,0.00014064,2]
[422255993,1778771439000,-3088.6804876,0.00014065,2]
[422255986,1778771439000,-389.80177104,0.00014064,2]
[422255985,1778771439000,-500.0,0.00014064,2]
[422255983,1778771439000,-500.0,0.00014064,2]
[422255994,1778771439000,-3815.527264,0.00014065,2]
[422255976,1778771439000,-166.66,0.00013973,2]
[422255979,1778771439000,-937.1125542,0.00014012,2]
[422255972,1778771439000,-163.0,0.0001372,2]
[422255984,1778771439000,-237.03099634,0.00014064,2]
[422255974,1778771439000,-319.64271074,0.00013965,2]
[422255992,1778771439000,-199183.13171,0.00014065,2]
[422255988,1778771439000,-500.0,0.00014064,2]
[422255999,1778771439000,-166.66,0.00014384,2]
[422255987,1778771439000,-500.0,0.00014064,2]
[422255989,1778771439000,-500.0,0.00014064,2]
[422255990,1778771439000,-500.0,0.00014064,2]
[422255998,1778771439000,-2000.0,0.00014268,2]
[422255996,1778771439000,-26773.0,0.00014138,2]
[422255997,1778771439000,-166.66,0.00014247,2]
[422256000,1778771439000,-500.0,0.00014452,2]
[422256001,1778771439000,-500.0,0.00014452,2]
[422256007,1778771439000,-165.0519984,0.00014669,2]
[422256008,1778771439000,-10000.0,0.00014815,2]
[422256002,1778771439000,-840.228,0.00014452,2]
[422256003,1778771439000,-3002.89,0.00014497,2]
[422255975,1778771439000,-574.6801,0.00013965,2]
[422255991,1778771439000,-500.0,0.00014064,2]
[422255970,1778771439000,-1027.0,0.00013699,2]
[422255953,1778771439000,-1027.0,0.00013699,2]
[422255973,1778771439000,-166.66,0.00013836,2]
[422256004,1778771439000,-329.59,0.00014497,2]
[422255946,1778771439000,-200.0,0.00013699,2]
[422255948,1778771439000,-1027.0,0.00013699,2]
[422255947,1778771439000,-166.66,0.00013699,2]
[422255951,1778771439000,-1027.0,0.00013699,2]
[422255949,1778771439000,-1027.0,0.00013699,2]
[422255956,1778771439000,-1027.0,0.00013699,2]
[422255950,1778771439000,-1027.0,0.00013699,2]
[422255952,1778771439000,-1027.0,0.00013699,2]
[422255954,1778771439000,-1027.0,0.00013699,2]
[422255955,1778771439000,-1027.0,0.00013699,2]
[422255958,1778771439000,-1027.0,0.00013699,2]
[422255968,1778771439000,-1027.0,0.00013699,2]
[422255977,1778771439000,-169.9671925,0.00013976,2]
[422255964,1778771439000,-1027.0,0.00013699,2]
[422255967,1778771439000,-1027.0,0.00013699,2]
[422255962,1778771439000,-1027.0,0.00013699,2]
[422255961,1778771439000,-1027.0,0.00013699,2]
[422255960,1778771439000,-1027.0,0.00013699,2]
[422255957,1778771439000,-1027.0,0.00013699,2]
[422255969,1778771439000,-1027.0,0.00013699,2]
[422255965,1778771439000,-1027.0,0.00013699,2]
[422255963,1778771439000,-1027.0,0.00013699,2]
[422255966,1778771439000,-1027.0,0.00013699,2]
[422255980,1778771439000,-196.8255723,0.00014064,2]
[422255971,1778771439000,-1033.54383866,0.00013699,2]
[422255978,1778771439000,-250.0,0.00014,2]
[422255981,1778771439000,-500.0,0.00014064,2]
[422255959,1778771439000,-1027.0,0.00013699,2]
[422256006,1778771439000,-207.0,0.00014607,2]
[422256057,1778771439000,-591.875821,0.00015,2]
[422256009,1778771439000,-1000.0,0.00014816,7]
[422256046,1778771439000,-151.0,0.00015,2]
[422256038,1778771439000,-300.0,0.00015,2]
[422256043,1778771439000,-2531.85443811,0.00015,14]
[422256040,1778771439000,-151.0,0.00015,2]
[422256042,1778771439000,-2075.94096564,0.00015,2]
[422256041,1778771439000,-449858.98144113,0.00015,2]
[422256048,1778771439000,-151.0,0.00015,2]
[422256049,1778771439000,-151.0,0.00015,2]
[422256050,1778771439000,-151.0,0.00015,2]
[422256051,1778771439000,-151.0,0.00015,2]
[422256058,1778771439000,-591.875821,0.00015,2]
[422256005,1778771439000,-2423.94,0.00014497,2]
[422256056,1778771439000,-591.875821,0.00015,2]
[422256037,1778771439000,-301.11515345,0.00015,2]
[422256052,1778771439000,-591.875821,0.00015,2]
[422256060,1778771439000,-425.186581,0.00015,2]
[422256053,1778771439000,-591.875821,0.00015,2]
[422256055,1778771439000,-591.875821,0.00015,2]
[422256061,1778771439000,-425.186581,0.00015,2]
[422256062,1778771439000,-425.186581,0.00015,2]
[422256071,1778771439000,-151.0,0.00015,2]
[422256063,1778771439000,-425.186581,0.00015,2]
[422256070,1778771439000,-151.0,0.00015,2]
[422256066,1778771439000,-425.186581,0.00015,2]
[422256064,1778771439000,-425.186581,0.00015,2]
[422256068,1778771439000,-425.186581,0.00015,2]
[422256072,1778771439000,-1062.333433,0.00015,2]
[422256069,1778771439000,-425.186581,0.00015,2]
[422256059,1778771439000,-591.875821,0.00015,2]
[422256035,1778771439000,-500.0,0.00015,2]
[422256054,1778771439000,-591.875821,0.00015,2]
[422256044,1778771439000,-8081.766424,0.00015,2]
[422256039,1778771439000,-200.06784425,0.00015,2]
[422256011,1778771439000,-1580.5,0.00014999,2]
[422256019,1778771439000,-500.0,0.00015,2]
[422256021,1778771439000,-500.0,0.00015,2]
[422256010,1778771439000,-150.0,0.00014986,2]
[422256012,1778771439000,-300.0,0.00014999,2]
[422256016,1778771439000,-500.0,0.00015,2]
[422256015,1778771439000,-500.0,0.00015,2]
[422256013,1778771439000,-3066359.01617176,0.00015,2]
[422256017,1778771439000,-500.0,0.00015,2]
[422256014,1778771439000,-1513.09,0.00015,2]
[422256018,1778771439000,-500.0,0.00015,2]
[422256026,1778771439000,-500.0,0.00015,2]
[422256022,1778771439000,-500.0,0.00015,2]
[422256020,1778771439000,-500.0,0.00015,2]
[422256024,1778771439000,-500.0,0.00015,2]
[422256045,1778771439000,-6770004.9560311,0.00015,2]
[422256047,1778771439000,-151.0,0.00015,2]
[422256036,1778771439000,-264.89014969,0.00015,2]
[422256025,1778771439000,-500.0,0.00015,2]
[422256034,1778771439000,-500.0,0.00015,2]
[422256031,1778771439000,-500.0,0.00015,2]
[422256029,1778771439000,-500.0,0.00015,2]
[422256023,1778771439000,-500.0,0.00015,2]
[422256027,1778771439000,-500.0,0.00015,2]
[422256030,1778771439000,-500.0,0.00015,2]
[422256033,1778771439000,-500.0,0.00015,2]
[422256032,1778771439000,-500.0,0.00015,2]
[422256028,1778771439000,-500.0,0.00015,2]
[422256112,1778771440000,-500.0,0.00015133,2]
[422256110,1778771440000,-500.0,0.00015133,2]
[422256122,1778771440000,-151.0,0.00015133,2]
[422256111,1778771440000,-200.0,0.00015133,2]
[422256107,1778771440000,-892.364592,0.00015068,2]
[422256101,1778771440000,-892.364592,0.00015068,2]
[422256104,1778771440000,-892.364592,0.00015068,2]
[422256106,1778771440000,-892.364592,0.00015068,2]
[422256105,1778771440000,-892.364592,0.00015068,2]
[422256103,1778771440000,-892.364592,0.00015068,2]
[422256113,1778771440000,-151.0,0.00015133,2]
[422256108,1778771440000,-892.364592,0.00015068,2]
[422256116,1778771440000,-151.0,0.00015133,2]
[422256123,1778771440000,-151.0,0.00015133,2]
[422256120,1778771440000,-151.0,0.00015133,2]
[422256119,1778771440000,-151.0,0.00015133,2]
[422256118,1778771440000,-151.0,0.00015133,2]
[422256115,1778771440000,-151.0,0.00015133,2]
[422256117,1778771440000,-151.0,0.00015133,2]
[422256128,1778771440000,-151.0,0.00015133,2]
[422256126,1778771440000,-151.0,0.00015133,2]
[422256125,1778771440000,-151.0,0.00015133,2]
[422256127,1778771440000,-151.0,0.00015133,2]
[422256135,1778771440000,-151.0,0.00015133,2]
[422256124,1778771440000,-151.0,0.00015133,2]
[422256102,1778771440000,-892.364592,0.00015068,2]
[422256114,1778771440000,-151.0,0.00015133,2]
[422256109,1778771440000,-151.0,0.00015133,2]
[422256134,1778771440000,-500.0,0.00015133,2]
[422256099,1778771440000,-605.0,0.00015063,2]
[422256074,1778771440000,-1062.333433,0.00015,2]
[422256077,1778771440000,-1062.333433,0.00015,2]
[422256078,1778771440000,-1062.333433,0.00015,2]
[422256073,1778771440000,-1062.333433,0.00015,2]
[422256079,1778771440000,-1062.333433,0.00015,2]
[422256075,1778771440000,-1062.333433,0.00015,2]
[422256080,1778771440000,-151.0,0.00015,2]
[422256076,1778771440000,-1062.333433,0.00015,2]
[422256084,1778771440000,-726.414866,0.00015,2]
[422256081,1778771440000,-151.0,0.00015,2]
[422256083,1778771440000,-161.502865,0.00015,2]
[422256082,1778771440000,-151.0,0.00015,2]
[422256100,1778771440000,-480.43,0.00015068,2]
[422256086,1778771440000,-726.414866,0.00015,2]
[422256096,1778771440000,-151.0,0.00015,2]
[422256088,1778771440000,-726.414866,0.00015,2]
[422256087,1778771440000,-726.414866,0.00015,2]
[422256097,1778771440000,-151.0,0.00015,2]
[422256090,1778771440000,-726.414866,0.00015,2]
[422256091,1778771440000,-726.414866,0.00015,2]
[422256093,1778771440000,-151.0,0.00015,2]
[422256089,1778771440000,-726.414866,0.00015,2]
[422256092,1778771440000,-151.0,0.00015,2]
[422256095,1778771440000,-175.70569,0.00015,2]
[422256094,1778771440000,-151.0,0.00015,2]
[422256098,1778771440000,-330.0,0.00015014,3]
[422256085,1778771440000,-726.414866,0.00015,2]
[422256132,1778771440000,-500.0,0.00015133,2]
[422256121,1778771440000,-151.0,0.00015133,2]
[422256133,1778771440000,-151.0,0.00015133,2]
[422256165,1778771440000,-482.55,0.00016392,2]
[422256164,1778771440000,-482.55,0.00016277,2]
[422256167,1778771440000,-2439.2,0.00016438,2]
[422256162,1778771440000,-200.0,0.00016229,2]
[422256168,1778771440000,-616.92635506,0.00016438,2]
[422256176,1778771440000,-151.0,0.00016438,2]
[422256177,1778771440000,-151.0,0.00016438,2]
[422256180,1778771440000,-151.0,0.00016438,2]
[422256182,1778771440000,-151.0,0.00016438,2]
[422256169,1778771440000,-153.0,0.00016438,2]
[422256179,1778771440000,-151.0,0.00016438,2]
[422256181,1778771440000,-151.0,0.00016438,2]
[422256178,1778771440000,-151.0,0.00016438,2]
[422256172,1778771440000,-151.0,0.00016438,2]
[422256171,1778771440000,-240.07820667,0.00016438,2]
[422256174,1778771440000,-151.0,0.00016438,2]
[422256175,1778771440000,-151.0,0.00016438,2]
[422256186,1778771440000,-151.0,0.00016438,2]
[422256184,1778771440000,-151.0,0.00016438,2]
[422256188,1778771440000,-480.43,0.00016438,2]
[422256192,1778771440000,-503.301144,0.00016438,2]
[422256193,1778771440000,-6069.126935,0.00016438,2]
[422256189,1778771440000,-503.301144,0.00016438,2]
[422256185,1778771440000,-151.0,0.00016438,2]
[422256190,1778771440000,-503.301144,0.00016438,2]
[422256191,1778771440000,-503.301144,0.00016438,2]
[422256129,1778771440000,-151.0,0.00015133,2]
[422256161,1778771440000,-8183.64,0.00016116,2]
[422256157,1778771440000,-1405.27194018,0.00015707,2]
[422256183,1778771440000,-151.0,0.00016438,2]
[422256160,1778771440000,-300.0,0.00016,2]
[422256158,1778771440000,-2000.0,0.00015853,2]
[422256131,1778771440000,-151.0,0.00015133,2]
[422256130,1778771440000,-151.0,0.00015133,2]
[422256136,1778771440000,-151.0,0.00015133,2]
[422256140,1778771440000,-151.0,0.00015133,2]
[422256141,1778771440000,-151.0,0.00015133,2]
[422256139,1778771440000,-151.0,0.00015133,2]
[422256137,1778771440000,-151.0,0.00015133,2]
[422256143,1778771440000,-151.0,0.00015133,2]
[422256144,1778771440000,-151.0,0.00015133,2]
[422256138,1778771440000,-151.0,0.00015133,2]
[422256145,1778771440000,-151.0,0.00015133,2]
[422256155,1778771440000,-200.0,0.00015681,2]
[422256142,1778771440000,-151.0,0.00015133,2]
[422256147,1778771440000,-1865.36488657,0.00015133,2]
[422256166,1778771440000,-300.0,0.00016437,2]
[422256148,1778771440000,-151.0,0.00015133,2]
[422256156,1778771440000,-1934.38338737,0.00015681,2]
[422256163,1778771440000,-2005.9555727,0.00016229,2]
[422256159,1778771440000,-181.5,0.00015853,2]
[422256152,1778771440000,-164.29,0.00015619,2]
[422256153,1778771440000,-169.08,0.00015623,2]
[422256150,1778771440000,-207.0,0.00015429,2]
[422256187,1778771440000,-151.0,0.00016438,2]
[422256154,1778771440000,-169.08,0.00015623,2]
[422256146,1778771440000,-151.0,0.00015133,2]
[422256149,1778771440000,-8508.0,0.000152,2]
[422256151,1778771440000,-499.73797022,0.00015541,2]
[422256211,1778771441000,-482.55,0.00016608,2]
[422256216,1778771441000,-200.0,0.00016777,2]
[422256214,1778771441000,-156.57,0.00016712,2]
[422256212,1778771441000,-482.55,0.00016693,2]
[422256215,1778771441000,-775.04,0.00016724,2]
[422256218,1778771441000,-482.58,0.00016807,2]
[422256217,1778771441000,-2080.17592889,0.00016777,2]
[422256221,1778771441000,-451.73,0.00017121,2]
[422256227,1778771441000,-318.55,0.00017857,2]
[422256226,1778771441000,-789.58,0.00017583,2]
[422256225,1778771441000,-2000.0,0.00017439,2]
[422256222,1778771441000,-200.0,0.00017325,2]
[422256224,1778771441000,-12999.45538441,0.00017329,2]
[422256232,1778771441000,-165.12126188,0.000182,2]
[422256213,1778771441000,-428.70529493,0.00016697,2]
[422256228,1778771441000,-500.0,0.00017872,2]
[422256223,1778771441000,-2157.14243826,0.00017325,2]
[422256210,1778771441000,-482.55,0.00016505,2]
[422256207,1778771441000,-700.0,0.00016494,2]
[422256220,1778771441000,-274.42,0.000171,2]
[422256229,1778771441000,-2236.95670848,0.00017873,2]
[422256194,1778771441000,-6069.126935,0.00016438,2]
[422256195,1778771441000,-6069.126935,0.00016438,2]
[422256205,1778771441000,-155.907713,0.00016438,2]
[422256206,1778771441000,-350.0,0.00016461,2]
[422256198,1778771441000,-6069.126935,0.00016438,2]
[422256196,1778771441000,-6069.126935,0.00016438,2]
[422256208,1778771441000,-4442.34461827,0.000165,2]
[422256197,1778771441000,-6069.126935,0.00016438,2]
[422256199,1778771441000,-6069.126935,0.00016438,2]
[422256201,1778771441000,-151.0,0.00016438,2]
[422256203,1778771441000,-151.0,0.00016438,2]
[422256200,1778771441000,-6069.126935,0.00016438,2]
[422256202,1778771441000,-151.0,0.00016438,2]
[422256209,1778771441000,-7431.94628016,0.000165,2]
[422256219,1778771441000,-1513.09,0.00017,2]
[422256204,1778771441000,-151.0,0.00016438,2]
[422256230,1778771441000,-165.12126188,0.00018,2]
[422256236,1778771441000,-160.0,0.00018322,2]
[422256234,1778771441000,-1280.88388878,0.00018288,2]
[422256257,1778771441000,-15000.0,0.00019101,4]
[422256253,1778771441000,-181.5,0.00019024,2]
[422256250,1778771441000,-88552.60881034,0.00019,2]
[422256259,1778771441000,-15000.0,0.00019101,4]
[422256267,1778771441000,-151.0,0.00019178,2]
[422256270,1778771441000,-787.643953,0.00019178,2]
[422256268,1778771441000,-225.842796,0.00019178,2]
[422256269,1778771441000,-787.643953,0.00019178,2]
[422256258,1778771441000,-15000.0,0.00019101,4]
[422256260,1778771441000,-15000.0,0.00019101,4]
[422256265,1778771441000,-151.0,0.00019178,2]
[422256263,1778771441000,-151.0,0.00019178,2]
[422256262,1778771441000,-151.0,0.00019178,2]
[422256266,1778771441000,-151.0,0.00019178,2]
[422256264,1778771441000,-151.0,0.00019178,2]
[422256271,1778771441000,-787.643953,0.00019178,2]
[422256231,1778771441000,-350.0,0.00018,2]
[422256254,1778771441000,-6052.0,0.00019058,2]
[422256248,1778771441000,-729.3,0.00019,2]
[422256261,1778771441000,-11455.90633333,0.00019101,4]
[422256256,1778771441000,-15000.0,0.00019101,4]
[422256244,1778771441000,-465.69,0.00018937,2]
[422256252,1778771441000,-2000.0,0.00019024,2]
[422256235,1778771441000,-152.0,0.00018288,2]
[422256243,1778771441000,-1238.398,0.00018931,2]
[422256242,1778771441000,-817.53776541,0.00018836,2]
[422256238,1778771441000,-165.12126188,0.000184,2]
[422256237,1778771441000,-214.95940296,0.00018322,2]
[422256239,1778771441000,-2439.2,0.0001841,2]
[422256233,1778771441000,-665.57701068,0.00018288,2]
[422256240,1778771441000,-2319.72410669,0.00018421,2]
[422256245,1778771441000,-2405.55389864,0.00018969,2]
[422256247,1778771441000,-300.0,0.00018999,2]
[422256249,1778771441000,-3068.80912787,0.00019,2]
[422256246,1778771441000,-158.43537017,0.00018982,2]
[422256241,1778771441000,-272.44285486,0.00018622,2]
[422256255,1778771441000,-3630.0,0.00019058,2]
[422256251,1778771441000,-340.5660685,0.00019,2]
[422256346,1778771442000,-4774.8,0.00020548,2]
[422256352,1778771442000,-4732.81,0.00020548,2]
[422256362,1778771442000,-4816.77,0.00020548,2]
[422256349,1778771442000,-4732.81,0.00020548,2]
[422256344,1778771442000,-2439.2,0.00020381,2]
[422256348,1778771442000,-4732.81,0.00020548,2]
[422256343,1778771442000,-527.7696768,0.0002012,2]
[422256342,1778771442000,-214.518505,0.000201,10]
[422256351,1778771442000,-4732.81,0.00020548,2]
[422256345,1778771442000,-2873.77165228,0.0002041,30]
[422256357,1778771442000,-4816.77,0.00020548,2]
[422256358,1778771442000,-4816.77,0.00020548,2]
[422256355,1778771442000,-4816.77,0.00020548,2]
[422256356,1778771442000,-4816.77,0.00020548,2]
[422256353,1778771442000,-4816.77,0.00020548,2]
[422256359,1778771442000,-4816.77,0.00020548,2]
[422256354,1778771442000,-4816.77,0.00020548,2]
[422256360,1778771442000,-4816.77,0.00020548,2]
[422256374,1778771442000,-4816.77,0.00020548,2]
[422256363,1778771442000,-4816.77,0.00020548,2]
[422256365,1778771442000,-4816.77,0.00020548,2]
[422256347,1778771442000,-4774.8,0.00020548,2]
[422256361,1778771442000,-4816.77,0.00020548,2]
[422256350,1778771442000,-4732.81,0.00020548,2]
[422256322,1778771442000,-306.0,0.0002,2]
[422256341,1778771442000,-2586.85809042,0.00020065,2]
[422256366,1778771442000,-4816.77,0.00020548,2]
[422256319,1778771442000,-151.0,0.0002,2]
[422256323,1778771442000,-175.8020267,0.0002,2]
[422256317,1778771442000,-52298.5789593,0.0002,2]
[422256318,1778771442000,-152.0,0.0002,2]